bitfinex/quotes_BTCUSD_20251031
["timestamp","ask_amount","ask_price","bid_price","bid_amount"]
[1761916757025,2.90429144,110180.0,110170.0,4.814e-05]
[1761916757423,2.92279331,110180.0,110170.0,4.814e-05]
[1761916757594,2.92379331,110180.0,110170.0,4.814e-05]
[1761916757999,2.92279331,110180.0,110170.0,4.814e-05]
[1761916758402,2.93972371,110180.0,110170.0,4.814e-05]
[1761916758608,2.94072371,110180.0,110170.0,4.814e-05]
[1761916759771,2.95496501,110180.0,110170.0,4.814e-05]
[1761916762444,2.42560972,110180.0,110170.0,4.814e-05]
[1761916762724,2.88898118,110180.0,110170.0,4.814e-05]
[1761916762954,2.39185779,110180.0,110170.0,0.15480447]
[1761916763172,2.39073779,110180.0,110170.0,0.17926447]
[1761916763575,2.03761649,110180.0,110170.0,0.17926447]
[1761916763847,2.25055169,110180.0,110170.0,0.17926447]
[1761916764053,2.24955169,110180.0,110170.0,0.17926447]
[1761916764258,2.24955169,110180.0,110170.0,0.18026447]
[1761916764468,2.15861268,110180.0,110170.0,0.18026447]
[1761916764667,2.07901563,110180.0,110170.0,0.18026447]
[1761916764871,2.4670648,110180.0,110170.0,0.18026447]
[1761916765831,2.34,110180.0,110170.0,0.18026447]
[1761916767062,2.34,110180.0,110170.0,0.19841823]
[1761916767063,0.34,110180.0,110170.0,0.19841823]
[1761916767259,0.34,110180.0,110170.0,0.23215281]
[1761916767464,0.01423629,110190.0,110180.0,0.1270648]
[1761916767465,0.35423629,110190.0,110180.0,0.1270648]
[1761916767694,2.35423629,110190.0,110180.0,0.1673648]
[1761916768544,2.96529413,110190.0,110180.0,0.0156]
[1761916769181,2.96629413,110190.0,110180.0,0.0156]
[1761916770253,2.96629413,110190.0,110180.0,0.18529125]
[1761916770254,0.01523629,110190.0,110180.0,0.18529125]
[1761916770412,0.001,110190.0,110180.0,0.18529125]
[1761916771061,0.001,110190.0,110180.0,0.27511026]
[1761916771511,0.001,110190.0,110180.0,0.75799483]
[1761916772136,2.51358056,110220.0,110210.0,0.12703021]
[1761916772342,2.35358056,110220.0,110210.0,0.18041647]
[1761916772559,2.48059924,110220.0,110210.0,0.05268]
[1761916773446,2.48108105,110220.0,110210.0,0.05268]
[1761916773870,2.48108105,110220.0,110210.0,0.05368]
[1761916776223,2.48220105,110220.0,110210.0,0.02898]
[1761916776424,2.48108105,110220.0,110210.0,0.05368]
[1761916776842,2.96396562,110220.0,110210.0,0.05368]
[1761916777090,2.96508562,110220.0,110210.0,0.02898]
[1761916779548,3.22914503,110220.0,110210.0,0.02898]
[1761916780192,2.48108105,110220.0,110210.0,0.07175211]
[1761916780637,2.48108105,110220.0,110210.0,0.05368]
[1761916782362,3.22802503,110220.0,110210.0,0.05368]
[1761916783133,3.22914503,110220.0,110210.0,0.02898]
[1761916783940,3.32008404,110220.0,110210.0,0.001]
[1761916789176,3.33431668,110220.0,110210.0,0.001]
[1761916789617,2.62704174,110200.0,110190.0,0.01238]
[1761916789821,2.12816174,110200.0,110190.0,0.02886]
[1761916790454,2.87510572,110200.0,110190.0,0.02886]
[1761916791135,2.87415303,110200.0,110190.0,0.02886]
[1761916791958,2.87415303,110200.0,110190.0,0.02986]
[1761916792576,3.21415303,110200.0,110190.0,0.02986]
[1761916794795,2.34,110200.0,110190.0,0.18091327]
[1761916795888,2.46704174,110200.0,110190.0,0.18091327]
[1761916797589,0.46704174,110200.0,110190.0,0.18091327]
[1761916800549,0.46704174,110200.0,110190.0,0.05386]
[1761916800758,3.21510572,110200.0,110190.0,0.01748]
[1761916801042,3.21510572,110200.0,110190.0,0.02989]
[1761916801281,3.21510572,110200.0,110190.0,0.05389]
[1761916802781,3.21510572,110200.0,110190.0,0.02989]
[1761916803431,2.8931081,110200.0,110190.0,0.02989]
[1761916804731,2.8931081,110200.0,110190.0,0.05389]
[1761916805838,2.34,110200.0,110190.0,0.20027667]
[1761916806108,2.0,110210.0,110190.0,0.62522303]
[1761916806342,2.0,110210.0,110200.0,0.19808056]
[1761916806573,0.12703021,110210.0,110200.0,0.17993174]
[1761916806806,2.0,110210.0,110200.0,0.17993174]
[1761916807250,2.001,110210.0,110200.0,0.21390458]
[1761916807487,0.001,110210.0,110200.0,0.21390458]
[1761916807722,2.0,110210.0,110200.0,0.21390458]
[1761916809124,0.001,110210.0,110200.0,0.21390458]
[1761916809602,2.0,110210.0,110200.0,0.21390458]
[1761916809813,2.0,110210.0,110200.0,0.21890458]
[1761916811272,0.01406237,110220.0,110210.0,0.12703021]
[1761916811483,0.00048181,110220.0,110210.0,0.2751555]
[1761916811704,0.00048181,110220.0,110210.0,0.25700833]
[1761916812387,0.00048181,110220.0,110210.0,0.7717737]
[1761916812593,0.00048181,110220.0,110210.0,0.34782734]
[1761916813231,0.00048181,110220.0,110210.0,0.34682734]
[1761916813707,0.00048181,110220.0,110210.0,0.35482734]
[1761916814590,0.56101337,110240.0,110220.0,0.12701868]
[1761916814804,0.13619811,110240.0,110230.0,0.02746]
[1761916815019,0.56114447,110240.0,110230.0,0.05168]
[1761916815225,0.01429442,110240.0,110230.0,0.19683104]
[1761916815449,0.01429442,110240.0,110230.0,0.17868716]
[1761916815848,0.01529442,110240.0,110230.0,0.17868716]
[1761916816068,0.01529442,110240.0,110230.0,0.21535394]
[1761916816337,0.01429442,110240.0,110230.0,0.21535394]
[1761916816757,0.01529442,110240.0,110230.0,0.21535394]
[1761916817380,0.01529442,110240.0,110230.0,0.17868716]
[1761916817595,0.14229006,110240.0,110230.0,0.17868716]
[1761916818833,0.01529442,110240.0,110230.0,0.17868716]
[1761916819467,0.01529442,110240.0,110230.0,0.26850617]
[1761916821288,0.01429442,110240.0,110230.0,0.26850617]
[1761916821503,0.01429442,110240.0,110230.0,0.31415485]
[1761916821713,0.01429442,110240.0,110230.0,0.27050617]
[1761916822136,0.01429442,110240.0,110230.0,0.27150617]
[1761916823186,0.56623642,110240.0,110230.0,0.18168716]
[1761916823942,0.01541442,110240.0,110230.0,0.15746716]
[1761916824187,0.01429442,110240.0,110230.0,0.18057716]
[1761916824459,0.14129006,110240.0,110230.0,0.18057716]
[1761916824687,0.56735642,110240.0,110230.0,0.03046]
[1761916825514,0.14129006,110240.0,110230.0,0.18057716]
[1761916825737,0.56623642,110240.0,110230.0,0.18057716]
[1761916825943,0.56735642,110240.0,110230.0,0.15746716]
[1761916826146,0.56735642,110240.0,110230.0,0.05357]
[1761916826363,0.56735642,110240.0,110230.0,0.03046]
[1761916826554,0.56623642,110240.0,110230.0,0.05357]
[1761916826797,0.56735642,110240.0,110230.0,0.03046]
[1761916827237,2.56735642,110240.0,110230.0,0.003]
[1761916827458,2.90847642,110240.0,110230.0,0.003]
[1761916827886,2.99829543,110240.0,110230.0,0.001]
[1761916828123,3.02672699,110240.0,110230.0,0.001]
[1761916828552,0.12701868,110220.0,110210.0,0.01241]
[1761916828767,0.55308504,110220.0,110210.0,0.01241]
[1761916828995,0.55308504,110220.0,110210.0,0.02819]
[1761916829207,0.55196504,110220.0,110210.0,0.17833021]
[1761916830252,0.55308504,110220.0,110210.0,0.15522021]
[1761916830456,2.55308504,110220.0,110210.0,0.02797]
[1761916831157,2.55308504,110220.0,110210.0,0.15500021]
[1761916831370,2.0,110220.0,110210.0,0.19807082]
[1761916833722,0.50851616,110230.0,110220.0,0.12701868]
[1761916833927,0.38150844,110230.0,110220.0,0.17809868]
[1761916834337,0.3542305,110230.0,110220.0,0.17809868]
[1761916834549,0.3542305,110230.0,110220.0,0.19972058]
[1761916835197,2.0,110230.0,110220.0,0.19972058]
[1761916836444,0.12700716,110230.0,110220.0,0.19972058]
[1761916836652,0.12700716,110230.0,110220.0,0.20272058]
[1761916836858,2.0,110230.0,110220.0,0.20272058]
[1761916841410,0.4246339,110230.0,110220.0,0.20272058]
[1761916842946,2.35429442,110240.0,110230.0,0.12700716]
[1761916843154,2.90592396,110240.0,110230.0,0.17808716]
[1761916843370,0.77892832,110240.0,110230.0,0.17808716]
[1761916843811,0.35429442,110240.0,110230.0,0.17808716]
[1761916844016,0.90592396,110240.0,110230.0,0.17808716]
[1761916845116,0.77892832,110240.0,110230.0,0.17808716]
[1761916849545,0.16359197,110250.0,110230.0,0.17808716]
[1761916849546,0.00022061,110250.0,110240.0,0.16317792]
[1761916849760,0.00022061,110250.0,110240.0,1.24239374]
[1761916850457,0.00022061,110250.0,110240.0,0.39312594]
[1761916850687,0.00022061,110250.0,110240.0,1.24239374]
[1761916851806,0.00022061,110250.0,110240.0,1.24439374]
[1761916852527,0.00022061,110250.0,110240.0,1.25139374]
[1761916853448,0.00022061,110250.0,110240.0,0.88426568]
[1761916853660,0.00022061,110250.0,110240.0,0.40212594]
[1761916853872,0.00022061,110250.0,110240.0,0.88426568]
[1761916854099,0.00022061,110250.0,110240.0,0.8480834]
[1761916854322,0.00022061,110250.0,110240.0,0.36594366]
[1761916854575,0.00022061,110250.0,110240.0,0.27612465]
[1761916855014,0.00022061,110250.0,110240.0,0.26712465]
[1761916855448,0.00022061,110250.0,110240.0,0.27012465]
[1761916857836,0.0002,110270.0,110260.0,0.64529463]
[1761916858041,0.0002,110270.0,110260.0,0.82820056]
[1761916858260,0.0002,110270.0,110260.0,0.30987854]
[1761916858485,0.0002,110270.0,110260.0,0.33265854]
[1761916859131,0.0002,110270.0,110260.0,0.33465854]
[1761916859623,0.0002,110270.0,110260.0,0.34165854]
[1761916860759,0.0002,110270.0,110260.0,0.82379828]
[1761916861657,0.0002,110270.0,110260.0,0.34165854]
[1761916861880,0.0002,110270.0,110260.0,0.82379828]
[1761916863072,0.51363551,110290.0,110280.0,1.12741134]
[1761916863073,0.0002,110290.0,110280.0,1.12741134]
[1761916863310,0.00033106,110290.0,110280.0,0.84076962]
[1761916863574,0.00033106,110290.0,110280.0,0.86354962]
[1761916863999,0.00121312,110290.0,110280.0,0.82736734]
[1761916864889,0.00121312,110290.0,110280.0,0.82936734]
[1761916865315,0.00121312,110290.0,110280.0,0.83336734]
[1761916869545,0.00121312,110290.0,110280.0,0.3512276]
[1761916869770,0.00121312,110290.0,110280.0,0.83336734]
[1761916870493,0.00121312,110290.0,110280.0,0.3512276]
[1761916870702,0.00121312,110290.0,110280.0,0.74354833]
[1761916874043,0.00121312,110290.0,110280.0,0.26140859]
[1761916874244,0.00121312,110290.0,110280.0,0.74354833]
[1761916876996,0.00121312,110290.0,110280.0,0.26140859]
[1761916877202,0.00121312,110290.0,110280.0,0.74354833]
[1761916877408,0.00121312,110290.0,110280.0,0.83069927]
[1761916877857,0.00121312,110290.0,110280.0,0.83924927]
[1761916878283,0.513608,110320.0,110310.0,0.12691505]
[1761916878284,0.0002,110320.0,110310.0,0.12691505]
[1761916878495,8e-05,110330.0,110320.0,0.16308583]
[1761916878715,0.00868541,110330.0,110320.0,0.84028131]
[1761916878938,0.00868541,110330.0,110320.0,0.35814157]
[1761916879149,0.00022441,110330.0,110320.0,0.35814157]
[1761916879370,0.00022441,110330.0,110320.0,1.24172193]
[1761916879990,0.49882837,110370.0,110340.0,0.14314055]
[1761916879991,0.35421892,110370.0,110340.0,0.14314055]
[1761916880214,0.00176613,110410.0,110390.0,0.12682055]
[1761916880215,2.0,110400.0,110390.0,0.12682055]
[1761916880455,0.00048156,110400.0,110390.0,0.14493813]
[1761916880689,0.02545684,110400.0,110390.0,0.48493813]
[1761916880919,0.02545684,110400.0,110390.0,0.92505118]
[1761916881139,0.02545684,110400.0,110390.0,0.62735343]
[1761916881140,0.04837684,110400.0,110390.0,0.62735343]
[1761916882082,0.04837684,110400.0,110390.0,0.21663956]
[1761916882323,0.04834812,110400.0,110390.0,0.21663956]
[1761916882554,0.00890812,110400.0,110390.0,1.0375699]
[1761916882821,0.00890812,110400.0,110390.0,1.0385699]
[1761916882822,0.00048156,110400.0,110390.0,1.0385699]
[1761916883075,0.01800156,110400.0,110390.0,0.55663956]
[1761916883321,0.01800156,110400.0,110390.0,0.73375218]
[1761916883560,0.00148156,110400.0,110390.0,0.21763956]
[1761916883787,0.03992156,110400.0,110390.0,0.21663956]
[1761916884258,0.04234439,110400.0,110390.0,0.21663956]
[1761916884747,0.04234439,110400.0,110390.0,0.21763956]
[1761916886151,0.00290439,110400.0,110390.0,0.21763956]
[1761916886373,0.01942439,110400.0,110390.0,0.21763956]
[1761916886621,0.01942439,110400.0,110390.0,0.21663956]
[1761916886837,0.02042439,110400.0,110390.0,0.21663956]
[1761916887061,0.01942439,110400.0,110390.0,0.21663956]
[1761916888693,0.00290439,110400.0,110390.0,0.6975699]
[1761916888930,2.0,110410.0,110400.0,0.12681159]
[1761916889103,2.0,110420.0,110410.0,0.1268001]
[1761916889317,2.00852643,110420.0,110410.0,0.1268001]
[1761916889524,2.02504643,110420.0,110410.0,0.1268001]
[1761916890266,0.02504643,110420.0,110410.0,0.1268001]
[1761916890715,0.01665102,110420.0,110410.0,0.1268001]
[1761916890927,0.03957102,110420.0,110410.0,0.1268001]
[1761916891153,0.04157102,110420.0,110410.0,0.1268001]
[1761916891364,0.03957102,110420.0,110410.0,0.1268001]
[1761916891571,0.04057102,110420.0,110410.0,0.1268001]
[1761916891782,0.01765102,110420.0,110410.0,0.1268001]
[1761916891991,0.04057102,110420.0,110410.0,0.1268001]
[1761916892643,0.04057102,110420.0,110400.0,0.12681159]
[1761916892849,0.03944,110410.0,110400.0,0.14492753]
[1761916893320,0.03944,110410.0,110400.0,0.12681159]
[1761916894213,0.03944,110410.0,110390.0,0.13587934]
[1761916894460,2.4668001,110410.0,110400.0,0.26538203]
[1761916894690,2.4668001,110410.0,110300.0,0.03021618]
[1761916894691,0.01999998,110350.0,110300.0,0.03021618]
[1761916894909,0.01999998,110350.0,110300.0,0.01813236]
[1761916894910,0.03651998,110310.0,110300.0,0.01813236]
[1761916895177,0.03651998,110310.0,110270.0,0.49235898]
[1761916895178,0.02999997,110300.0,110270.0,0.00236]
[1761916895398,0.51093031,110290.0,110270.0,0.00236]
[1761916895621,0.01999998,110290.0,110270.0,0.12932062]
[1761916895852,0.04161997,110290.0,110280.0,0.03256565]
[1761916896308,0.04161997,110290.0,110280.0,0.01443]
[1761916897215,0.16090287,110310.0,110280.0,0.24562859]
[1761916897216,0.02161999,110310.0,110280.0,0.24562859]
[1761916897435,0.02161999,110310.0,110300.0,0.00603]
[1761916897655,0.02161999,110310.0,110300.0,0.02046]
[1761916897656,0.00999999,110310.0,110300.0,0.02046]
[1761916897871,0.13691504,110310.0,110300.0,0.02046]
[1761916898082,0.00999999,110310.0,110300.0,0.01946]
[1761916898300,0.14853504,110310.0,110300.0,0.01946]
[1761916898735,0.14853504,110310.0,110300.0,0.01746]
[1761916898957,0.13692655,110300.0,110270.0,0.49030077]
[1761916899176,0.00999999,110300.0,110290.0,0.00303]
[1761916899393,0.62946538,110310.0,110300.0,0.01143]
[1761916899613,0.15353504,110310.0,110300.0,0.01143]
[1761916900065,0.00999999,110310.0,110300.0,0.01143]
[1761916900305,0.00999999,110320.0,110300.0,0.25773574]
[1761916900538,0.12691505,110310.0,110300.0,0.09924901]
[1761916900768,0.1369037,110320.0,110300.0,0.09924901]
[1761916900986,0.1369037,110320.0,110310.0,0.01346]
[1761916901870,0.63435404,110320.0,110310.0,0.00403]
[1761916902116,0.65727404,110320.0,110310.0,0.00203]
[1761916902347,0.65727404,110320.0,110310.0,0.00251156]
[1761916902572,0.1763437,110320.0,110310.0,0.00251156]
[1761916902803,0.65727404,110320.0,110310.0,0.00251156]
[1761916903300,0.1534237,110320.0,110310.0,0.00994156]
[1761916904349,0.00999999,110320.0,110310.0,0.00994156]
[1761916904812,0.13690354,110320.0,110310.0,0.00994156]
[1761916905033,0.00999999,110320.0,110310.0,0.00994156]
[1761916905702,0.14270683,110330.0,110310.0,0.24480561]
[1761916905909,0.14270683,110330.0,110320.0,0.00743]
[1761916905910,0.13689683,110330.0,110320.0,0.00743]
[1761916907165,0.00999999,110330.0,110320.0,0.00743]
[1761916907377,0.00999999,110330.0,110320.0,0.02555907]
[1761916907560,0.14272251,110340.0,110320.0,0.12280808]
[1761916907771,0.14272251,110340.0,110330.0,0.00743]
[1761916907772,0.00999999,110340.0,110330.0,0.00743]
[1761916908298,0.00999999,110340.0,110330.0,0.02555743]
[1761916908533,0.00999999,110340.0,110330.0,0.00743]
[1761916908764,0.00999999,110340.0,110330.0,0.02555743]
[1761916909010,0.02583517,110360.0,110340.0,0.12688055]
[1761916909238,0.01421517,110360.0,110350.0,0.10467901]
[1761916909480,2.0,110360.0,110350.0,0.09724901]
[1761916910166,0.12685755,110360.0,110350.0,0.09724901]
[1761916910631,0.13826228,110370.0,110350.0,0.00791156]
[1761916910868,2.0,110360.0,110350.0,0.00891156]
[1761916911525,2.0,110360.0,110350.0,0.13578061]
[1761916911970,0.12685755,110360.0,110350.0,0.00791156]
[1761916912220,2.91275765,110360.0,110350.0,0.00048156]
[1761916913292,2.91275765,110360.0,110350.0,0.00148156]
[1761916913536,2.16734755,110360.0,110350.0,0.00148156]
[1761916913754,2.91275765,110360.0,110350.0,0.00148156]
[1761916914634,2.88804765,110360.0,110350.0,0.00148156]
[1761916915080,0.14263755,110360.0,110350.0,0.00148156]
[1761916916159,0.16734755,110360.0,110350.0,0.00148156]
[1761916916364,0.16734755,110360.0,110350.0,0.00170186]
[1761916916600,0.14263755,110360.0,110350.0,0.00170186]
[1761916918198,0.16734755,110360.0,110350.0,0.00170186]
[1761916918620,0.91275765,110360.0,110350.0,0.00170186]
[1761916919070,2.91275765,110360.0,110350.0,0.00170186]
[1761916919747,3.25275765,110360.0,110350.0,0.00170186]
[1761916920192,2.50734755,110360.0,110350.0,0.00170186]
[1761916920406,3.25275765,110360.0,110350.0,0.00170186]
[1761916920674,2.50734755,110360.0,110350.0,0.00170186]
[1761916920910,0.48263755,110360.0,110350.0,0.00913186]
[1761916921344,0.50734755,110360.0,110350.0,0.00170186]
[1761916921558,1.22804765,110360.0,110350.0,0.00170186]
[1761916921777,3.22804765,110360.0,110350.0,0.00170186]
[1761916922012,3.25275765,110360.0,110350.0,0.00170186]
[1761916922237,3.26119887,110360.0,110350.0,0.30170186]
[1761916923608,3.28066658,110360.0,110350.0,0.30170186]
[1761916924279,3.28068361,110360.0,110350.0,0.30170186]
[1761916926480,2.53527351,110360.0,110350.0,0.30170186]
[1761916926705,3.28068361,110360.0,110350.0,0.30170186]
[1761916930390,3.37050262,110360.0,110350.0,0.30170186]
[1761916930816,3.45260692,110360.0,110350.0,0.30170186]
[1761916931016,3.45260692,110360.0,110290.0,0.47899204]
[1761916931017,3.45260692,110360.0,110290.0,0.13899204]
[1761916931018,0.12691638,110310.0,110290.0,0.13899204]
[1761916931235,0.12691638,110310.0,110290.0,0.21993103]
[1761916931236,0.87232648,110310.0,110290.0,0.21993103]
[1761916931451,0.7725501,110300.0,110290.0,0.13760248]
[1761916931655,2.7725501,110300.0,110290.0,0.01066441]
[1761916931863,2.7725501,110300.0,110290.0,0.00014441]
[1761916931864,2.92418666,110300.0,110290.0,0.00014441]
[1761916932502,2.92418666,110300.0,110290.0,0.00114441]
[1761916932717,2.92418666,110300.0,110290.0,0.00014441]
[1761916933137,2.94368252,110300.0,110290.0,0.00214441]
[1761916933383,3.37350153,110300.0,110290.0,0.00414441]
[1761916933773,3.37350153,110300.0,110290.0,0.00174255]
[1761916933996,3.1883598,110300.0,110290.0,0.00674255]
[1761916934204,3.35218553,110300.0,110290.0,0.00674255]
[1761916934410,3.35218553,110300.0,110270.0,0.18119586]
[1761916934612,1.990624,110290.0,110280.0,0.15094934]
[1761916935028,1.990624,110290.0,110280.0,0.16731934]
[1761916935856,0.002,110300.0,110290.0,0.12693807]
[1761916936060,1.990624,110300.0,110290.0,0.16730807]
[1761916936193,0.003,110300.0,110290.0,0.16730807]
[1761916936607,0.63938568,110310.0,110290.0,0.16730807]
[1761916936902,1.990624,110300.0,110290.0,0.16730807]
[1761916937350,1.990624,110300.0,110290.0,0.16863068]
[1761916937816,1.991624,110300.0,110290.0,0.16863068]
[1761916938039,0.001,110300.0,110290.0,0.16863068]
[1761916938253,0.001,110300.0,110290.0,0.14463068]
[1761916938468,0.14312656,110300.0,110290.0,0.00132261]
[1761916938895,0.16721656,110300.0,110290.0,0.00132261]
[1761916939142,0.91262666,110300.0,110290.0,0.00132261]
[1761916939352,0.91562666,110300.0,110290.0,0.00132261]
[1761916940217,0.93509344,110300.0,110290.0,0.00132261]
[1761916940443,0.18968334,110300.0,110290.0,0.00132261]
[1761916940662,0.93509344,110300.0,110290.0,0.05872261]
[1761916941340,2.52030734,110300.0,110290.0,0.05872261]
[1761916941578,3.26571744,110300.0,110290.0,0.05872261]
[1761916942483,3.26571744,110300.0,110290.0,0.20214068]
[1761916942484,2.36929078,110300.0,110290.0,0.20214068]
[1761916942707,0.02346678,110300.0,110290.0,0.22489068]
[1761916942932,0.004,110300.0,110290.0,0.22489068]
[1761916943178,0.004,110300.0,110290.0,0.20214068]
[1761916943371,0.13092656,110300.0,110290.0,0.20214068]
[1761916943633,0.14751656,110300.0,110290.0,0.05872261]
[1761916943844,2.90704067,110300.0,110290.0,0.05872261]
[1761916944078,2.92650745,110300.0,110290.0,0.05872261]
[1761916946400,3.26650745,110300.0,110290.0,0.05872261]
[1761916946826,2.49649735,110300.0,110290.0,0.07520261]
[1761916947033,2.01298079,110300.0,110290.0,0.20214068]
[1761916947243,1.99351401,110300.0,110290.0,0.20214068]
[1761916947476,1.99351401,110300.0,110290.0,0.22489068]
[1761916947682,0.00289001,110300.0,110290.0,0.22489068]
[1761916949895,0.17100657,110300.0,110290.0,0.05872261]
[1761916950494,0.91641667,110300.0,110290.0,0.05872261]
[1761916951169,0.17100657,110300.0,110290.0,0.05872261]
[1761916952428,2.66163057,110300.0,110290.0,0.05872261]
[1761916952658,2.16163057,110300.0,110290.0,0.05872261]
[1761916953624,3.35634745,110300.0,110290.0,0.05872261]
[1761916953849,2.61193735,110300.0,110290.0,0.05872261]
[1761916954093,3.35734745,110300.0,110290.0,0.05872261]
[1761916954555,3.35634745,110300.0,110290.0,0.05872261]
[1761916955245,2.61093735,110300.0,110290.0,0.05872261]
[1761916956114,2.52111834,110300.0,110290.0,0.05872261]
[1761916956769,3.35634745,110300.0,110290.0,0.05872261]
[1761916957851,3.37056942,110300.0,110290.0,0.05872261]
[1761916959402,3.37905217,110300.0,110290.0,0.05872261]
[1761916962826,2.63364207,110300.0,110290.0,0.05872261]
[1761916963029,3.37905217,110300.0,110290.0,0.05872261]
[1761916963487,3.11568895,110300.0,110290.0,0.05872261]
[1761916965769,3.11668895,110300.0,110290.0,0.05872261]
[1761916966187,3.11568895,110300.0,110290.0,0.05872261]
[1761916966413,3.11668895,110300.0,110290.0,0.05872261]
[1761916967680,3.11568895,110300.0,110290.0,0.05872261]
[1761916968251,3.11668895,110300.0,110290.0,0.05872261]
[1761916968656,3.13368046,110300.0,110290.0,0.05872261]
[1761916968858,3.13268046,110300.0,110290.0,0.05872261]
[1761916970048,3.13368046,110300.0,110290.0,0.05872261]
[1761916970621,3.13268046,110300.0,110290.0,0.05872261]
[1761916971046,3.13368046,110300.0,110290.0,0.05872261]
[1761916971883,3.13268046,110300.0,110290.0,0.05872261]
[1761916972900,2.65063358,110300.0,110290.0,0.05872261]
[1761916973771,3.13268046,110300.0,110290.0,0.05872261]
[1761916976339,2.65063358,110300.0,110290.0,0.05872261]
[1761916976553,3.13268046,110300.0,110290.0,0.05872261]
[1761916978206,3.13268767,110300.0,110290.0,0.05872261]
[1761916979252,3.11568895,110300.0,110290.0,0.05872261]
[1761916979459,3.13269171,110300.0,110290.0,0.05872261]
[1761916980111,2.65064483,110300.0,110290.0,0.05872261]
[1761916980329,3.13269171,110300.0,110290.0,0.05872261]
[1761916980754,3.13279419,110300.0,110290.0,0.05872261]
[1761916980972,3.14237419,110300.0,110290.0,0.05872261]
[1761916983382,3.14337419,110300.0,110290.0,0.05872261]
[1761916984640,3.14237419,110300.0,110290.0,0.05872261]
[1761916985083,3.14337419,110300.0,110290.0,0.05872261]
[1761916986401,3.14340384,110300.0,110290.0,0.05872261]
[1761916986868,3.14342443,110300.0,110290.0,0.05872261]
[1761916987073,3.17960671,110300.0,110290.0,0.05872261]
[1761916987512,3.66165359,110300.0,110270.0,0.00013106]
[1761916987727,0.12701866,110230.0,110210.0,0.00445]
[1761916987942,0.96517556,110220.0,110210.0,0.0045811]
[1761916988157,0.52610952,110220.0,110210.0,0.0045811]
[1761916988374,2.97916956,110220.0,110210.0,0.0001311]
[1761916989219,2.99873032,110220.0,110210.0,0.0001311]
[1761916989432,2.97916956,110220.0,110210.0,0.0001311]
[1761916989844,2.99114961,110220.0,110210.0,0.0001311]
[1761916992425,2.50910273,110220.0,110210.0,0.0001311]
[1761916992638,2.48573273,110220.0,110210.0,0.0160511]
[1761916992854,0.46701868,110220.0,110210.0,0.16712131]
[1761916993075,0.34,110220.0,110210.0,0.0400911]
[1761916993296,0.13958574,110230.0,110210.0,0.05823827]
[1761916993505,0.12701868,110220.0,110210.0,0.0241711]
[1761916993716,0.12701868,110220.0,110210.0,0.15120131]
[1761916993940,0.12701868,110220.0,110210.0,0.16888654]
[1761916994158,0.14230868,110220.0,110210.0,0.01781633]
[1761916994368,0.62435556,110220.0,110210.0,0.01781633]
[1761916994815,2.95497956,110220.0,110210.0,0.00989633]
[1761916995029,2.97780956,110220.0,110210.0,0.00989633]
[1761916995262,2.97780956,110220.0,110210.0,0.00189633]
[1761916995687,2.97780956,110220.0,110210.0,0.01189633]
[1761916996970,3.06762857,110220.0,110210.0,0.01189633]
[1761916997203,3.06862857,110220.0,110210.0,0.01189633]
[1761916997416,3.08809114,110220.0,110210.0,0.01189633]
[1761916998124,3.08809114,110220.0,110210.0,0.00189633]
[1761916998356,3.08809114,110220.0,110210.0,0.00489633]
[1761916998857,3.10332406,110220.0,110210.0,0.00189633]
[1761916999086,3.10332406,110220.0,110210.0,0.00289633]
[1761917000215,3.08386149,110220.0,110210.0,0.00289633]
[1761917001390,3.12004377,110220.0,110210.0,0.00289633]
[1761917001623,0.60911168,110180.0,110170.0,0.00752]
[1761917001849,0.72507069,110180.0,110170.0,0.00800181]
[1761917002085,3.07852469,110180.0,110170.0,0.00048181]
[1761917002799,3.07952469,110180.0,110170.0,0.00048181]
[1761917003042,3.07852469,110180.0,110170.0,0.00248181]
[1761917003282,3.11470697,110180.0,110170.0,0.00048181]
[1761917003506,3.11470697,110180.0,110160.0,0.0004]
[1761917003507,2.15488261,110170.0,110160.0,0.0004]
[1761917003727,3.25955538,110170.0,110160.0,0.00044814]
[1761917003943,3.59955538,110170.0,110160.0,0.00044814]
[1761917004163,3.6189557,110170.0,110160.0,0.00044814]
[1761917004436,3.13690882,110170.0,110160.0,0.00044814]
[1761917004661,3.08032622,110170.0,110160.0,0.00044814]
[1761917005835,3.08132622,110170.0,110160.0,0.00044814]
[1761917007531,3.15057916,110170.0,110160.0,0.00044814]
[1761917007747,2.74132622,110170.0,110160.0,0.00044814]
[1761917007955,2.74132622,110170.0,110160.0,0.00155231]
[1761917007956,2.25927934,110170.0,110160.0,0.00155231]
[1761917008198,3.08132622,110170.0,110160.0,0.00155231]
[1761917010766,2.59927934,110170.0,110160.0,0.00155231]
[1761917013193,3.08132622,110170.0,110160.0,0.00155231]
[1761917013866,2.57622934,110170.0,110160.0,0.01688231]
[1761917014084,3.08132622,110170.0,110160.0,0.00155231]
[1761917016586,2.59927934,110170.0,110160.0,0.00155231]
[1761917016799,3.08132622,110170.0,110160.0,0.00155231]
[1761917017428,3.10080697,110170.0,110160.0,0.00155231]
[1761917018087,3.07775697,110170.0,110160.0,0.01688231]
[1761917018300,0.48755708,110170.0,110160.0,0.16752018]
[1761917018752,0.48755708,110170.0,110160.0,0.04043231]
[1761917019172,0.48755708,110170.0,110160.0,0.16752018]
[1761917019385,0.48755708,110170.0,110160.0,0.04043231]
[1761917020081,0.2992057,110170.0,110160.0,0.04043231]
[1761917020262,0.12707633,110170.0,110160.0,0.04043231]
[1761917020470,0.12707633,110170.0,110160.0,0.01688231]
[1761917020681,0.12707633,110170.0,110160.0,0.14397018]
[1761917021564,0.12707633,110170.0,110160.0,0.16752018]
[1761917021779,1.990624,110170.0,110160.0,0.16752018]
[1761917022642,0.20990262,110180.0,110170.0,0.12707633]
[1761917022829,0.16082029,110180.0,110170.0,0.14240633]
[1761917023049,0.14130263,110180.0,110170.0,0.01533]
[1761917023452,0.01423783,110180.0,110170.0,0.14240633]
[1761917023872,0.01423783,110180.0,110170.0,0.16595633]
[1761917024084,0.01423783,110180.0,110170.0,0.16895633]
[1761917025343,0.01423783,110180.0,110170.0,0.18711009]
[1761917025998,0.12705499,110190.0,110170.0,0.16895633]
[1761917026443,0.12705499,110190.0,110180.0,0.01639]
[1761917026655,0.1423848,110180.0,110170.0,0.01939]
[1761917026863,0.1423848,110180.0,110170.0,0.01639]
[1761917027293,0.1423848,110180.0,110170.0,0.01739]
[1761917027491,0.1270648,110180.0,110170.0,0.14446633]
[1761917027781,0.1270648,110180.0,110170.0,0.16704633]
[1761917028178,0.1270648,110180.0,110170.0,0.16792959]
[1761917028390,2.1330088,110180.0,110170.0,0.01727326]
[1761917028611,2.17581646,110180.0,110170.0,0.01727326]
[1761917029043,2.15252646,110180.0,110170.0,0.02027326]
[1761917030247,2.17581646,110180.0,110170.0,0.00388326]
[1761917030453,2.92314749,110180.0,110170.0,0.00388326]
[1761917030988,3.0129665,110180.0,110170.0,0.00388326]
[1761917031735,3.36996828,110180.0,110170.0,0.00388326]